{"text_format":"3","workbook":"xlsx","n_sheets":4,"sheets":["Armatuurlaud","Eelarve","Seadistamine","diagrammiandmed"],"not_rendered":{"charts":2,"images":1,"defined_names":42},"read":"whole","date_system":"1900"}

{"sheet":"Armatuurlaud","index":0,"n_rows":13,"n_cols":14,"rows_kept":13,"merged":[[2,0,4,2],[6,0,8,2],[10,0,12,2]]}
[{"$nulls":13},{"$f":"EelarveNimi&\". AASTA INTERAKTIIVNE EELARVE\"","v":"PEREKOND JOHNSON 2012. AASTA INTERAKTIIVNE EELARVE"}]
[]
[{"$f":"diagrammiandmed!C38","v":{"v":4000,"d":"4,000 €"}}]
[]
[{"$nulls":3},"sissetulek"]
[]
[{"$f":"diagrammiandmed!C39","v":{"v":5933,"d":"5,933 €"}}]
[]
[{"$nulls":3},"kulud"]
[]
[{"$f":"diagrammiandmed!D40&diagrammiandmed!C40 &\" €\"","v":"-1933 €"}]
[]
[{"$nulls":3},"rahavoog"]

{"sheet":"Eelarve","index":1,"n_rows":131,"n_cols":16,"rows_kept":131,"merged":[[18,1,18,13],[27,1,27,13],[36,1,36,13],[45,1,45,13],[54,1,54,13],[61,1,61,13],[68,1,68,13],[75,1,75,13],[82,1,82,13],[89,1,89,13],[96,1,96,13],[103,1,103,13],[110,1,110,13],[117,1,117,13],[124,1,124,13]]}
[null,null,"jaan","veebr","märts","apr","mai","juuni","juuli","aug","sept","okt","nov","dets","aasta","keskm"]
[]
[]
[]
[null,"Algsaldo",1000]
[null,"Kogusissetulek",{"$f":"SUM(tblSissetulek[jaan])","v":4222},{"$f":"SUM(tblSissetulek[veebr])","v":9033},{"$f":"SUM(tblSissetulek[märts])","v":4000},{"$f":"SUM(tblSissetulek[apr])","v":4045},{"$f":"SUM(tblSissetulek[mai])","v":9000},{"$f":"SUM(tblSissetulek[juuni])","v":1525},{"$f":"SUM(tblSissetulek[juuli])","v":1500},{"$f":"SUM(tblSissetulek[aug])","v":6500},{"$f":"SUM(tblSissetulek[sept])","v":4000},{"$f":"SUM(tblSissetulek[okt])","v":4000},{"$f":"SUM(tblSissetulek[nov])","v":9000},{"$f":"SUM(tblSissetulek[dets])","v":4000},{"$f":"SUM(tblSissetulek[aasta])","v":60825},{"$f":"O6/12","v":{"v":5068.75,"d":"5069"}}]
[null,"Kogukulud",{"$f":"SUM(tblKulukategooria_01[jaan],tblKulukategooria_02[jaan],tblKulukategooria_03[jaan],tblKulukategooria_04[jaan],tblKulukategooria_05[jaan],tblKulukategooria_06[jaan],tblKulukategooria_07[jaan],tblKulukategooria_08[jaan],tblKulukategooria_09[jaan],tblKulukategooria_10[jaan],tblKulukategooria_11[jaan],tblKulukategooria_12[jaan],tblKulukategooria_13[jaan],tblKulukategooria_14[jaan],tblKulukategooria_15[jaan],)","v":7936},{"$f":"SUM(tblKulukategooria_01[veebr],tblKulukategooria_02[veebr],tblKulukategooria_03[veebr],tblKulukategooria_04[veebr],tblKulukategooria_05[veebr],tblKulukategooria_06[veebr],tblKulukategooria_07[veebr],tblKulukategooria_08[veebr],tblKulukategooria_09[veebr],tblKulukategooria_10[veebr],tblKulukategooria_11[veebr],tblKulukategooria_12[veebr],tblKulukategooria_13[veebr],tblKulukategooria_14[veebr],tblKulukategooria_15[veebr],)","v":5243},{"$f":"SUM(tblKulukategooria_01[märts],tblKulukategooria_02[märts],tblKulukategooria_03[märts],tblKulukategooria_04[märts],tblKulukategooria_05[märts],tblKulukategooria_06[märts],tblKulukategooria_07[märts],tblKulukategooria_08[märts],tblKulukategooria_09[märts],tblKulukategooria_10[märts],tblKulukategooria_11[märts],tblKulukategooria_12[märts],tblKulukategooria_13[märts],tblKulukategooria_14[märts],tblKulukategooria_15[märts],)","v":5933},{"$f":"SUM(tblKulukategooria_01[apr],tblKulukategooria_02[apr],tblKulukategooria_03[apr],tblKulukategooria_04[apr],tblKulukategooria_05[apr],tblKulukategooria_06[apr],tblKulukategooria_07[apr],tblKulukategooria_08[apr],tblKulukategooria_09[apr],tblKulukategooria_10[apr],tblKulukategooria_11[apr],tblKulukategooria_12[apr],tblKulukategooria_13[apr],tblKulukategooria_14[apr],tblKulukategooria_15[apr],)","v":5858},{"$f":"SUM(tblKulukategooria_01[mai],tblKulukategooria_02[mai],tblKulukategooria_03[mai],tblKulukategooria_04[mai],tblKulukategooria_05[mai],tblKulukategooria_06[mai],tblKulukategooria_07[mai],tblKulukategooria_08[mai],tblKulukategooria_09[mai],tblKulukategooria_10[mai],tblKulukategooria_11[mai],tblKulukategooria_12[mai],tblKulukategooria_13[mai],tblKulukategooria_14[mai],tblKulukategooria_15[mai],)","v":5468},{"$f":"SUM(tblKulukategooria_01[juuni],tblKulukategooria_02[juuni],tblKulukategooria_03[juuni],tblKulukategooria_04[juuni],tblKulukategooria_05[juuni],tblKulukategooria_06[juuni],tblKulukategooria_07[juuni],tblKulukategooria_08[juuni],tblKulukategooria_09[juuni],tblKulukategooria_10[juuni],tblKulukategooria_11[juuni],tblKulukategooria_12[juuni],tblKulukategooria_13[juuni],tblKulukategooria_14[juuni],tblKulukategooria_15[juuni],)","v":5118},{"$f":"SUM(tblKulukategooria_01[juuli],tblKulukategooria_02[juuli],tblKulukategooria_03[juuli],tblKulukategooria_04[juuli],tblKulukategooria_05[juuli],tblKulukategooria_06[juuli],tblKulukategooria_07[juuli],tblKulukategooria_08[juuli],tblKulukategooria_09[juuli],tblKulukategooria_10[juuli],tblKulukategooria_11[juuli],tblKulukategooria_12[juuli],tblKulukategooria_13[juuli],tblKulukategooria_14[juuli],tblKulukategooria_15[juuli],)","v":5743},{"$f":"SUM(tblKulukategooria_01[aug],tblKulukategooria_02[aug],tblKulukategooria_03[aug],tblKulukategooria_04[aug],tblKulukategooria_05[aug],tblKulukategooria_06[aug],tblKulukategooria_07[aug],tblKulukategooria_08[aug],tblKulukategooria_09[aug],tblKulukategooria_10[aug],tblKulukategooria_11[aug],tblKulukategooria_12[aug],tblKulukategooria_13[aug],tblKulukategooria_14[aug],tblKulukategooria_15[aug],)","v":5353},{"$f":"SUM(tblKulukategooria_01[sept],tblKulukategooria_02[sept],tblKulukategooria_03[sept],tblKulukategooria_04[sept],tblKulukategooria_05[sept],tblKulukategooria_06[sept],tblKulukategooria_07[sept],tblKulukategooria_08[sept],tblKulukategooria_09[sept],tblKulukategooria_10[sept],tblKulukategooria_11[sept],tblKulukategooria_12[sept],tblKulukategooria_13[sept],tblKulukategooria_14[sept],tblKulukategooria_15[sept],)","v":5983},{"$f":"SUM(tblKulukategooria_01[okt],tblKulukategooria_02[okt],tblKulukategooria_03[okt],tblKulukategooria_04[okt],tblKulukategooria_05[okt],tblKulukategooria_06[okt],tblKulukategooria_07[okt],tblKulukategooria_08[okt],tblKulukategooria_09[okt],tblKulukategooria_10[okt],tblKulukategooria_11[okt],tblKulukategooria_12[okt],tblKulukategooria_13[okt],tblKulukategooria_14[okt],tblKulukategooria_15[okt],)","v":5943},{"$f":"SUM(tblKulukategooria_01[nov],tblKulukategooria_02[nov],tblKulukategooria_03[nov],tblKulukategooria_04[nov],tblKulukategooria_05[nov],tblKulukategooria_06[nov],tblKulukategooria_07[nov],tblKulukategooria_08[nov],tblKulukategooria_09[nov],tblKulukategooria_10[nov],tblKulukategooria_11[nov],tblKulukategooria_12[nov],tblKulukategooria_13[nov],tblKulukategooria_14[nov],tblKulukategooria_15[nov],)","v":5058},{"$f":"SUM(tblKulukategooria_01[dets],tblKulukategooria_02[dets],tblKulukategooria_03[dets],tblKulukategooria_04[dets],tblKulukategooria_05[dets],tblKulukategooria_06[dets],tblKulukategooria_07[dets],tblKulukategooria_08[dets],tblKulukategooria_09[dets],tblKulukategooria_10[dets],tblKulukategooria_11[dets],tblKulukategooria_12[dets],tblKulukategooria_13[dets],tblKulukategooria_14[dets],tblKulukategooria_15[dets],)","v":4958},{"$f":"SUM(tblKulukategooria_01[aasta],tblKulukategooria_02[aasta],tblKulukategooria_03[aasta],tblKulukategooria_04[aasta],tblKulukategooria_05[aasta],tblKulukategooria_06[aasta],tblKulukategooria_07[aasta],tblKulukategooria_08[aasta],tblKulukategooria_09[aasta],tblKulukategooria_10[aasta],tblKulukategooria_11[aasta],tblKulukategooria_12[aasta],tblKulukategooria_13[aasta],tblKulukategooria_14[aasta],tblKulukategooria_15[aasta],)","v":68594},{"$f":"O7/12","v":{"v":5716.166666666667,"d":"5716"}}]
[null,"Puhastulu",{"$f":"C6-C7","v":-3714},{"$f":"D6-D7","v":3790},-1933,-1813,3532,-3593,-4243,1147,-1983,-1943,3942,-958,-7769,{"$f":"O8/12","v":{"v":-647.4166666666666,"d":"-647"}}]
[null,"KOGURAHAVOOG",{"$f":"C5+C6-C7","v":-2714},{"$f":"C9+D6-D7","v":1076},{"$f":"D9+E6-E7","v":-857},-2670,862,-2731,-6974,-5827,-7810,-9753,-5811,-6769]
[]
[]
[null,"sissetulek"]
[null,"Töötasu ja jootraha",4000,4000,4000,4000,4000,1000,1000,1000,4000,4000,4000,4000,{"$f":"SUM(tblSissetulek[[#This Row],[jaan]:[dets]])","v":39000},{"$f":"tblSissetulek[[#This Row],[aasta]]/12","v":3250}]
[null,"Intressitulu",222,33,null,45,null,25,{"$nulls":6},{"$f":"SUM(tblSissetulek[[#This Row],[jaan]:[dets]])","v":325},{"$f":"tblSissetulek[[#This Row],[aasta]]/12","v":{"v":27.083333333333332,"d":"27"}}]
[null,"Dividendid",null,5000,null,null,5000,null,null,5000,null,null,5000,null,{"$f":"SUM(tblSissetulek[[#This Row],[jaan]:[dets]])","v":20000},{"$f":"tblSissetulek[[#This Row],[aasta]]/12","v":{"v":1666.6666666666667,"d":"1667"}}]
[null,"hüvitised/korvamised",{"$nulls":5},500,500,500,{"$nulls":4},{"$f":"SUM(tblSissetulek[[#This Row],[jaan]:[dets]])","v":1500},{"$f":"tblSissetulek[[#This Row],[aasta]]/12","v":125}]
[null,"Muu",{"$nulls":12},{"$f":"SUM(tblSissetulek[[#This Row],[jaan]:[dets]])","v":0},{"$f":"tblSissetulek[[#This Row],[aasta]]/12","v":0}]
[null,"KOGUTULU",{"$f":"SUBTOTAL(109,tblSissetulek[jaan])","v":4222},{"$f":"SUBTOTAL(109,tblSissetulek[veebr])","v":9033},{"$f":"SUBTOTAL(109,tblSissetulek[märts])","v":4000},{"$f":"SUBTOTAL(109,tblSissetulek[apr])","v":4045},{"$f":"SUBTOTAL(109,tblSissetulek[mai])","v":9000},{"$f":"SUBTOTAL(109,tblSissetulek[juuni])","v":1525},{"$f":"SUBTOTAL(109,tblSissetulek[juuli])","v":1500},{"$f":"SUBTOTAL(109,tblSissetulek[aug])","v":6500},{"$f":"SUBTOTAL(109,tblSissetulek[sept])","v":4000},{"$f":"SUBTOTAL(109,tblSissetulek[okt])","v":4000},{"$f":"SUBTOTAL(109,tblSissetulek[nov])","v":9000},{"$f":"SUBTOTAL(109,tblSissetulek[dets])","v":4000},{"$f":"SUM(tblSissetulek[aasta])","v":60825},{"$f":"tblSissetulek[[#Totals],[aasta]]/12","v":{"v":5068.75,"d":"5069"}}]
[]
[]
[null,"kodu"]
[null,"Hüpoteek/rent",850,850,850,850,850,850,850,850,850,850,900,900,{"$f":"SUM(tblKulukategooria_01[[#This Row],[jaan]:[dets]])","v":10300},{"$f":"tblKulukategooria_01[[#This Row],[aasta]]/12","v":{"v":858.3333333333334,"d":"858"}}]
[null,"Elekter",200,200,175,150,150,175,225,275,200,150,150,150,{"$f":"SUM(tblKulukategooria_01[[#This Row],[jaan]:[dets]])","v":2200},{"$f":"tblKulukategooria_01[[#This Row],[aasta]]/12","v":{"v":183.33333333333334,"d":"183"}}]
[null,"Telefon",50,50,100,100,50,50,100,100,50,50,50,50,{"$f":"SUM(tblKulukategooria_01[[#This Row],[jaan]:[dets]])","v":800},{"$f":"tblKulukategooria_01[[#This Row],[aasta]]/12","v":{"v":66.66666666666667,"d":"67"}}]
[null,"Kaabel/satelliit",69,69,69,69,69,69,69,69,69,69,69,69,{"$f":"SUM(tblKulukategooria_01[[#This Row],[jaan]:[dets]])","v":828},{"$f":"tblKulukategooria_01[[#This Row],[aasta]]/12","v":69}]
[null,"Internet",39,39,39,39,39,39,39,39,39,39,39,39,{"$f":"SUM(tblKulukategooria_01[[#This Row],[jaan]:[dets]])","v":468},{"$f":"tblKulukategooria_01[[#This Row],[aasta]]/12","v":39}]
[null,{"$f":"UPPER(\"Kokku \" & B21)","v":"KOKKU KODU"},{"$f":"SUM(tblKulukategooria_01[jaan])","v":1208},{"$f":"SUM(tblKulukategooria_01[veebr])","v":1208},{"$f":"SUM(tblKulukategooria_01[märts])","v":1233},{"$f":"SUM(tblKulukategooria_01[apr])","v":1208},{"$f":"SUM(tblKulukategooria_01[mai])","v":1158},{"$f":"SUM(tblKulukategooria_01[juuni])","v":1183},{"$f":"SUM(tblKulukategooria_01[juuli])","v":1283},{"$f":"SUM(tblKulukategooria_01[aug])","v":1333},{"$f":"SUM(tblKulukategooria_01[sept])","v":1208},{"$f":"SUM(tblKulukategooria_01[okt])","v":1158},{"$f":"SUM(tblKulukategooria_01[nov])","v":1208},{"$f":"SUM(tblKulukategooria_01[dets])","v":1208},{"$f":"SUM(tblKulukategooria_01[aasta])","v":14596},{"$f":"tblKulukategooria_01[[#Totals],[aasta]]/12","v":{"v":1216.3333333333333,"d":"1216"}}]
[]
[]
[null,"igapäevaelu"]
[null,"Toiduained",345,250,200,400,350,250,400,350,250,400,350,250,{"$f":"SUM(tblKulukategooria_02[[#This Row],[jaan]:[dets]])","v":3795},{"$f":"tblKulukategooria_02[[#This Row],[aasta]]/12","v":{"v":316.25,"d":"316"}}]
[null,"Riided",300,null,null,300,null,null,300,null,null,300,null,null,{"$f":"SUM(tblKulukategooria_02[[#This Row],[jaan]:[dets]])","v":1200},{"$f":"tblKulukategooria_02[[#This Row],[aasta]]/12","v":100}]
[null,"Õhtustamine/väljas söömine",125,125,300,125,125,200,125,125,125,125,125,125,{"$f":"SUM(tblKulukategooria_02[[#This Row],[jaan]:[dets]])","v":1750},{"$f":"tblKulukategooria_02[[#This Row],[aasta]]/12","v":{"v":145.83333333333334,"d":"146"}}]
[null,"Juuksur",25,null,50,null,25,null,50,null,25,null,100,null,{"$f":"SUM(tblKulukategooria_02[[#This Row],[jaan]:[dets]])","v":275},{"$f":"tblKulukategooria_02[[#This Row],[aasta]]/12","v":{"v":22.916666666666668,"d":"23"}}]
[null,"Muu",{"$nulls":12},{"$f":"SUM(tblKulukategooria_02[[#This Row],[jaan]:[dets]])","v":0},{"$f":"tblKulukategooria_02[[#This Row],[aasta]]/12","v":0}]
[null,{"$f":"UPPER(\"Kokku \" & B30)","v":"KOKKU IGAPÄEVAELU"},{"$f":"SUM(tblKulukategooria_02[jaan])","v":795},{"$f":"SUM(tblKulukategooria_02[veebr])","v":375},{"$f":"SUM(tblKulukategooria_02[märts])","v":550},{"$f":"SUM(tblKulukategooria_02[apr])","v":825},{"$f":"SUM(tblKulukategooria_02[mai])","v":500},{"$f":"SUM(tblKulukategooria_02[juuni])","v":450},{"$f":"SUM(tblKulukategooria_02[juuli])","v":875},{"$f":"SUM(tblKulukategooria_02[aug])","v":475},{"$f":"SUM(tblKulukategooria_02[sept])","v":400},{"$f":"SUM(tblKulukategooria_02[okt])","v":825},{"$f":"SUM(tblKulukategooria_02[nov])","v":575},{"$f":"SUM(tblKulukategooria_02[dets])","v":375},{"$f":"SUM(tblKulukategooria_02[jaan])","v":795},{"$f":"tblKulukategooria_02[[#Totals],[aasta]]/12","v":{"v":66.25,"d":"66"}}]
[]
[]
[null,"lapsed"]
[null,"Koolitarbed",123,null,100,{"$nulls":4},345,{"$nulls":4},{"$f":"SUM(tblKulukategooria_03[[#This Row],[jaan]:[dets]])","v":568},{"$f":"tblKulukategooria_03[[#This Row],[aasta]]/12","v":{"v":47.333333333333336,"d":"47"}}]
[null,"Riided",null,100,null,null,100,{"$nulls":3},100,null,null,100,{"$f":"SUM(tblKulukategooria_03[[#This Row],[jaan]:[dets]])","v":400},{"$f":"tblKulukategooria_03[[#This Row],[aasta]]/12","v":{"v":33.333333333333336,"d":"33"}}]
[null,"Koolilõuna",50,50,50,50,50,50,null,null,50,50,50,50,{"$f":"SUM(tblKulukategooria_03[[#This Row],[jaan]:[dets]])","v":500},{"$f":"tblKulukategooria_03[[#This Row],[aasta]]/12","v":{"v":41.666666666666664,"d":"42"}}]
[null,"Meditsiinitarbed",200,200,200,200,200,200,200,200,200,200,200,200,{"$f":"SUM(tblKulukategooria_03[[#This Row],[jaan]:[dets]])","v":2400},{"$f":"tblKulukategooria_03[[#This Row],[aasta]]/12","v":200}]
[null,"Muu",2000,150,{"$nulls":3},200,{"$nulls":3},100,null,null,{"$f":"SUM(tblKulukategooria_03[[#This Row],[jaan]:[dets]])","v":2450},{"$f":"tblKulukategooria_03[[#This Row],[aasta]]/12","v":{"v":204.16666666666666,"d":"204"}}]
[null,{"$f":"UPPER(\"Kokku \" & B39)","v":"KOKKU LAPSED"},{"$f":"SUM(tblKulukategooria_03[jaan])","v":2373},{"$f":"SUM(tblKulukategooria_03[veebr])","v":500},{"$f":"SUM(tblKulukategooria_03[märts])","v":350},{"$f":"SUM(tblKulukategooria_03[apr])","v":250},{"$f":"SUM(tblKulukategooria_03[mai])","v":350},{"$f":"SUM(tblKulukategooria_03[juuni])","v":450},{"$f":"SUM(tblKulukategooria_03[juuli])","v":200},{"$f":"SUM(tblKulukategooria_03[aug])","v":545},{"$f":"SUM(tblKulukategooria_03[sept])","v":350},{"$f":"SUM(tblKulukategooria_03[okt])","v":350},{"$f":"SUM(tblKulukategooria_03[nov])","v":250},{"$f":"SUM(tblKulukategooria_03[dets])","v":350},{"$f":"SUM(tblKulukategooria_03[aasta])","v":6318},{"$f":"tblKulukategooria_03[[#Totals],[aasta]]/12","v":{"v":526.5,"d":"527"}}]
[]
[]
[null,"transport"]
[null,"Sõiduki maksed",600,600,600,600,600,600,600,600,600,600,600,600,{"$f":"SUM(tblKulukategooria_04[[#This Row],[jaan]:[dets]])","v":7200},{"$f":"tblKulukategooria_04[[#This Row],[aasta]]/12","v":600}]
[null,"Kütus",325,325,325,325,325,500,500,500,325,325,325,325,{"$f":"SUM(tblKulukategooria_04[[#This Row],[jaan]:[dets]])","v":4425},{"$f":"tblKulukategooria_04[[#This Row],[aasta]]/12","v":{"v":368.75,"d":"369"}}]
[null,"Parandustööd",null,100,null,100,null,100,null,100,null,100,null,null,{"$f":"SUM(tblKulukategooria_04[[#This Row],[jaan]:[dets]])","v":500},{"$f":"tblKulukategooria_04[[#This Row],[aasta]]/12","v":{"v":41.666666666666664,"d":"42"}}]
[null,"Registreerimine/juhiluba",185,{"$nulls":7},225,{"$nulls":3},{"$f":"SUM(tblKulukategooria_04[[#This Row],[jaan]:[dets]])","v":410},{"$f":"tblKulukategooria_04[[#This Row],[aasta]]/12","v":{"v":34.166666666666664,"d":"34"}}]
[null,"Muu",{"$nulls":4},400,{"$nulls":7},{"$f":"SUM(tblKulukategooria_04[[#This Row],[jaan]:[dets]])","v":400},{"$f":"tblKulukategooria_04[[#This Row],[aasta]]/12","v":{"v":33.333333333333336,"d":"33"}}]
[null,{"$f":"UPPER(\"Kokku \" & B48)","v":"KOKKU TRANSPORT"},{"$f":"SUM(tblKulukategooria_04[jaan])","v":1110},{"$f":"SUM(tblKulukategooria_04[veebr])","v":1025},{"$f":"SUM(tblKulukategooria_04[märts])","v":925},{"$f":"SUM(tblKulukategooria_04[apr])","v":1025},{"$f":"SUM(tblKulukategooria_04[mai])","v":1325},{"$f":"SUM(tblKulukategooria_04[juuni])","v":1200},{"$f":"SUM(tblKulukategooria_04[juuli])","v":1100},{"$f":"SUM(tblKulukategooria_04[aug])","v":1200},{"$f":"SUM(tblKulukategooria_04[sept])","v":1150},{"$f":"SUM(tblKulukategooria_04[okt])","v":1025},{"$f":"SUM(tblKulukategooria_04[nov])","v":925},{"$f":"SUM(tblKulukategooria_04[dets])","v":925},{"$f":"SUM(tblKulukategooria_04[aasta])","v":12935},{"$f":"tblKulukategooria_04[[#Totals],[aasta]]/12","v":{"v":1077.9166666666667,"d":"1078"}}]
[]
[]
[null,"tervis"]
[null,"Arst/hambaarst",null,35,null,null,35,35,35,null,null,35,null,null,{"$f":"SUM(tblKulukategooria_05[[#This Row],[jaan]:[dets]])","v":175},{"$f":"tblKulukategooria_05[[#This Row],[aasta]]/12","v":{"v":14.583333333333334,"d":"15"}}]
[null,"Arstimid",25,25,25,25,25,25,25,25,25,25,25,25,{"$f":"SUM(tblKulukategooria_05[[#This Row],[jaan]:[dets]])","v":300},{"$f":"tblKulukategooria_05[[#This Row],[aasta]]/12","v":25}]
[null,"Muu",null,null,150,{"$nulls":5},150,{"$nulls":3},{"$f":"SUM(tblKulukategooria_05[[#This Row],[jaan]:[dets]])","v":300},{"$f":"tblKulukategooria_05[[#This Row],[aasta]]/12","v":25}]
[null,{"$f":"UPPER(\"Kokku \" & B57)","v":"KOKKU TERVIS"},{"$f":"SUM(tblKulukategooria_05[jaan])","v":25},{"$f":"SUM(tblKulukategooria_05[veebr])","v":60},{"$f":"SUM(tblKulukategooria_05[märts])","v":175},{"$f":"SUM(tblKulukategooria_05[apr])","v":25},{"$f":"SUM(tblKulukategooria_05[mai])","v":60},{"$f":"SUM(tblKulukategooria_05[juuni])","v":60},{"$f":"SUM(tblKulukategooria_05[juuli])","v":60},{"$f":"SUM(tblKulukategooria_05[aug])","v":25},{"$f":"SUM(tblKulukategooria_05[sept])","v":175},{"$f":"SUM(tblKulukategooria_05[okt])","v":60},{"$f":"SUM(tblKulukategooria_05[nov])","v":25},{"$f":"SUM(tblKulukategooria_05[dets])","v":25},{"$f":"SUM(tblKulukategooria_05[aasta])","v":775},{"$f":"tblKulukategooria_05[[#Totals],[aasta]]/12","v":{"v":64.58333333333333,"d":"65"}}]
[]
[]
[null,"kindlustus"]
[null,"Auto",150,150,150,150,150,150,150,150,150,150,150,150,{"$f":"SUM(tblKulukategooria_06[[#This Row],[jaan]:[dets]])","v":1800},{"$f":"tblKulukategooria_06[[#This Row],[aasta]]/12","v":150}]
[null,"Tervis",675,675,675,675,675,675,675,675,675,675,675,675,{"$f":"SUM(tblKulukategooria_06[[#This Row],[jaan]:[dets]])","v":8100},{"$f":"tblKulukategooria_06[[#This Row],[aasta]]/12","v":675}]
[null,"Elu",150,150,150,150,150,150,150,150,150,150,150,150,{"$f":"SUM(tblKulukategooria_06[[#This Row],[jaan]:[dets]])","v":1800},{"$f":"tblKulukategooria_06[[#This Row],[aasta]]/12","v":150}]
[null,{"$f":"UPPER(\"Kokku \" & B64)","v":"KOKKU KINDLUSTUS"},{"$f":"SUM(tblKulukategooria_06[jaan])","v":975},{"$f":"SUM(tblKulukategooria_06[veebr])","v":975},{"$f":"SUM(tblKulukategooria_06[märts])","v":975},{"$f":"SUM(tblKulukategooria_06[apr])","v":975},{"$f":"SUM(tblKulukategooria_06[mai])","v":975},{"$f":"SUM(tblKulukategooria_06[juuni])","v":975},{"$f":"SUM(tblKulukategooria_06[juuli])","v":975},{"$f":"SUM(tblKulukategooria_06[aug])","v":975},{"$f":"SUM(tblKulukategooria_06[sept])","v":975},{"$f":"SUM(tblKulukategooria_06[okt])","v":975},{"$f":"SUM(tblKulukategooria_06[nov])","v":975},{"$f":"SUM(tblKulukategooria_06[dets])","v":975},{"$f":"SUM(tblKulukategooria_06[aasta])","v":11700},{"$f":"tblKulukategooria_06[[#Totals],[aasta]]/12","v":975}]
[]
[]
[null,"haridus"]
[null,"Õppemaks",null,null,400,{"$nulls":5},400,{"$nulls":3},{"$f":"SUM(tblKulukategooria_07[[#This Row],[jaan]:[dets]])","v":800},{"$f":"tblKulukategooria_07[[#This Row],[aasta]]/12","v":{"v":66.66666666666667,"d":"67"}}]
[null,"Raamatud",null,null,225,{"$nulls":5},225,{"$nulls":3},{"$f":"SUM(tblKulukategooria_07[[#This Row],[jaan]:[dets]])","v":450},{"$f":"tblKulukategooria_07[[#This Row],[aasta]]/12","v":{"v":37.5,"d":"38"}}]
[null,"Muu",{"$nulls":12},{"$f":"SUM(tblKulukategooria_07[[#This Row],[jaan]:[dets]])","v":0},{"$f":"tblKulukategooria_07[[#This Row],[aasta]]/12","v":0}]
[null,{"$f":"UPPER(\"Kokku \" & B71)","v":"KOKKU HARIDUS"},{"$f":"SUM(tblKulukategooria_07[jaan])","v":0},{"$f":"SUM(tblKulukategooria_07[veebr])","v":0},{"$f":"SUM(tblKulukategooria_07[märts])","v":625},{"$f":"SUM(tblKulukategooria_07[apr])","v":0},{"$f":"SUM(tblKulukategooria_07[mai])","v":0},{"$f":"SUM(tblKulukategooria_07[juuni])","v":0},{"$f":"SUM(tblKulukategooria_07[juuli])","v":0},{"$f":"SUM(tblKulukategooria_07[aug])","v":0},{"$f":"SUM(tblKulukategooria_07[sept])","v":625},{"$f":"SUM(tblKulukategooria_07[okt])","v":0},{"$f":"SUM(tblKulukategooria_07[nov])","v":0},{"$f":"SUM(tblKulukategooria_07[dets])","v":0},{"$f":"SUM(tblKulukategooria_07[aasta])","v":1250},{"$f":"tblKulukategooria_07[[#Totals],[aasta]]/12","v":{"v":104.16666666666667,"d":"104"}}]
[]
[]
[null,"heategevus"]
[null,"Tehtud kingitused",null,100,{"$nulls":3},100,{"$nulls":3},100,null,null,{"$f":"SUM(tblKulukategooria_08[[#This Row],[jaan]:[dets]])","v":300},{"$f":"tblKulukategooria_08[[#This Row],[aasta]]/12","v":25}]
[null,"Heategevuslikud annetused",null,null,100,null,100,null,100,null,100,null,100,null,{"$f":"SUM(tblKulukategooria_08[[#This Row],[jaan]:[dets]])","v":500},{"$f":"tblKulukategooria_08[[#This Row],[aasta]]/12","v":{"v":41.666666666666664,"d":"42"}}]
[null,"Muu",{"$nulls":3},100,{"$nulls":3},100,{"$nulls":3},100,{"$f":"SUM(tblKulukategooria_08[[#This Row],[jaan]:[dets]])","v":300},{"$f":"tblKulukategooria_08[[#This Row],[aasta]]/12","v":25}]
[null,{"$f":"UPPER(\"Kokku \" & B78)","v":"KOKKU HEATEGEVUS"},{"$f":"SUM(tblKulukategooria_08[jaan])","v":0},{"$f":"SUM(tblKulukategooria_08[veebr])","v":100},{"$f":"SUM(tblKulukategooria_08[märts])","v":100},{"$f":"SUM(tblKulukategooria_08[apr])","v":100},{"$f":"SUM(tblKulukategooria_08[mai])","v":100},{"$f":"SUM(tblKulukategooria_08[juuni])","v":100},{"$f":"SUM(tblKulukategooria_08[juuli])","v":100},{"$f":"SUM(tblKulukategooria_08[aug])","v":100},{"$f":"SUM(tblKulukategooria_08[sept])","v":100},{"$f":"SUM(tblKulukategooria_08[okt])","v":100},{"$f":"SUM(tblKulukategooria_08[nov])","v":100},{"$f":"SUM(tblKulukategooria_08[dets])","v":100},{"$f":"SUM(tblKulukategooria_08[aasta])","v":1100},{"$f":"tblKulukategooria_08[[#Totals],[aasta]]/12","v":{"v":91.66666666666667,"d":"92"}}]
[]
[]
[null,"hoiused"]
[null,"Hädaolukorra fond",100,100,100,100,100,{"$nulls":3},100,100,100,100,{"$f":"SUM(tblKulukategooria_09[[#This Row],[jaan]:[dets]])","v":900},{"$f":"tblKulukategooria_09[[#This Row],[aasta]]/12","v":75}]
[null,"Pension (401k, IRA)",500,500,500,500,500,500,500,500,500,500,500,500,{"$f":"SUM(tblKulukategooria_09[[#This Row],[jaan]:[dets]])","v":6000},{"$f":"tblKulukategooria_09[[#This Row],[aasta]]/12","v":500}]
[null,"Hoiuste sissemakse",200,200,200,200,200,{"$nulls":3},200,200,200,200,{"$f":"SUM(tblKulukategooria_09[[#This Row],[jaan]:[dets]])","v":1800},{"$f":"tblKulukategooria_09[[#This Row],[aasta]]/12","v":150}]
[null,{"$f":"UPPER(\"Kokku \" & B85)","v":"KOKKU HOIUSED"},{"$f":"SUM(tblKulukategooria_09[jaan])","v":800},{"$f":"SUM(tblKulukategooria_09[veebr])","v":800},{"$f":"SUM(tblKulukategooria_09[märts])","v":800},{"$f":"SUM(tblKulukategooria_09[apr])","v":800},{"$f":"SUM(tblKulukategooria_09[mai])","v":800},{"$f":"SUM(tblKulukategooria_09[juuni])","v":500},{"$f":"SUM(tblKulukategooria_09[juuli])","v":500},{"$f":"SUM(tblKulukategooria_09[aug])","v":500},{"$f":"SUM(tblKulukategooria_09[sept])","v":800},{"$f":"SUM(tblKulukategooria_09[okt])","v":800},{"$f":"SUM(tblKulukategooria_09[nov])","v":800},{"$f":"SUM(tblKulukategooria_09[dets])","v":800},{"$f":"SUM(tblKulukategooria_09[aasta])","v":8700},{"$f":"tblKulukategooria_09[[#Totals],[aasta]]/12","v":725}]
[]
[]
[null,"kohustused"]
[null,"Krediitkaart #1",145,145,145,145,145,145,145,145,145,145,145,145,{"$f":"SUM(tblKulukategooria_10[[#This Row],[jaan]:[dets]])","v":1740},{"$f":"tblKulukategooria_10[[#This Row],[aasta]]/12","v":145}]
[null,"Föderaalmaksud",450,null,null,450,null,null,450,null,null,450,null,null,{"$f":"SUM(tblKulukategooria_10[[#This Row],[jaan]:[dets]])","v":1800},{"$f":"tblKulukategooria_10[[#This Row],[aasta]]/12","v":150}]
[null,"Õppelaen",55,55,55,55,55,55,55,55,55,55,55,55,{"$f":"SUM(tblKulukategooria_10[[#This Row],[jaan]:[dets]])","v":660},{"$f":"tblKulukategooria_10[[#This Row],[aasta]]/12","v":55}]
[null,{"$f":"UPPER(\"Kokku \" & B92)","v":"KOKKU KOHUSTUSED"},{"$f":"SUM(tblKulukategooria_10[jaan])","v":650},{"$f":"SUM(tblKulukategooria_10[veebr])","v":200},{"$f":"SUM(tblKulukategooria_10[märts])","v":200},{"$f":"SUM(tblKulukategooria_10[apr])","v":650},{"$f":"SUM(tblKulukategooria_10[mai])","v":200},{"$f":"SUM(tblKulukategooria_10[juuni])","v":200},{"$f":"SUM(tblKulukategooria_10[juuli])","v":650},{"$f":"SUM(tblKulukategooria_10[aug])","v":200},{"$f":"SUM(tblKulukategooria_10[sept])","v":200},{"$f":"SUM(tblKulukategooria_10[okt])","v":650},{"$f":"SUM(tblKulukategooria_10[nov])","v":200},{"$f":"SUM(tblKulukategooria_10[dets])","v":200},{"$f":"SUM(tblKulukategooria_10[aasta])","v":4200},{"$f":"tblKulukategooria_10[[#Totals],[aasta]]/12","v":350}]
[]
[]
[null," "]
[{"$nulls":14},{"$f":"SUM(tblKulukategooria_11[[#This Row],[jaan]:[dets]])","v":0},{"$f":"tblKulukategooria_11[[#This Row],[aasta]]/12","v":0}]
[{"$nulls":14},{"$f":"SUM(tblKulukategooria_11[[#This Row],[jaan]:[dets]])","v":0},{"$f":"tblKulukategooria_11[[#This Row],[aasta]]/12","v":0}]
[{"$nulls":14},{"$f":"SUM(tblKulukategooria_11[[#This Row],[jaan]:[dets]])","v":0},{"$f":"tblKulukategooria_11[[#This Row],[aasta]]/12","v":0}]
[null,{"$f":"UPPER(\"Kokku \" & B99)","v":"KOKKU  "},{"$f":"SUM(tblKulukategooria_11[jaan])","v":0},{"$f":"SUM(tblKulukategooria_11[veebr])","v":0},{"$f":"SUM(tblKulukategooria_11[märts])","v":0},{"$f":"SUM(tblKulukategooria_11[apr])","v":0},{"$f":"SUM(tblKulukategooria_11[mai])","v":0},{"$f":"SUM(tblKulukategooria_11[juuni])","v":0},{"$f":"SUM(tblKulukategooria_11[juuli])","v":0},{"$f":"SUM(tblKulukategooria_11[aug])","v":0},{"$f":"SUM(tblKulukategooria_11[sept])","v":0},{"$f":"SUM(tblKulukategooria_11[okt])","v":0},{"$f":"SUM(tblKulukategooria_11[nov])","v":0},{"$f":"SUM(tblKulukategooria_11[dets])","v":0},{"$f":"SUM(tblKulukategooria_11[aasta])","v":0},{"$f":"tblKulukategooria_11[[#Totals],[aasta]]/12","v":0}]
[]
[]
[null," "]
[{"$nulls":14},{"$f":"SUM(tblKulukategooria_12[[#This Row],[jaan]:[dets]])","v":0},{"$f":"tblKulukategooria_12[[#This Row],[aasta]]/12","v":0}]
[{"$nulls":14},{"$f":"SUM(tblKulukategooria_12[[#This Row],[jaan]:[dets]])","v":0},{"$f":"tblKulukategooria_12[[#This Row],[aasta]]/12","v":0}]
[{"$nulls":14},{"$f":"SUM(tblKulukategooria_12[[#This Row],[jaan]:[dets]])","v":0},{"$f":"tblKulukategooria_12[[#This Row],[aasta]]/12","v":0}]
[null,{"$f":"UPPER(\"Kokku \" & B106)","v":"KOKKU  "},{"$f":"SUM(tblKulukategooria_12[jaan])","v":0},{"$f":"SUM(tblKulukategooria_12[veebr])","v":0},{"$f":"SUM(tblKulukategooria_12[märts])","v":0},{"$f":"SUM(tblKulukategooria_12[apr])","v":0},{"$f":"SUM(tblKulukategooria_12[mai])","v":0},{"$f":"SUM(tblKulukategooria_12[juuni])","v":0},{"$f":"SUM(tblKulukategooria_12[juuli])","v":0},{"$f":"SUM(tblKulukategooria_12[aug])","v":0},{"$f":"SUM(tblKulukategooria_12[sept])","v":0},{"$f":"SUM(tblKulukategooria_12[okt])","v":0},{"$f":"SUM(tblKulukategooria_12[nov])","v":0},{"$f":"SUM(tblKulukategooria_12[dets])","v":0},{"$f":"SUM(tblKulukategooria_12[aasta])","v":0},{"$f":"tblKulukategooria_12[[#Totals],[aasta]]/12","v":0}]
[]
[]
[null," "]
[{"$nulls":14},{"$f":"SUM(tblKulukategooria_13[[#This Row],[jaan]:[dets]])","v":0},{"$f":"tblKulukategooria_13[[#This Row],[aasta]]/12","v":0}]
[{"$nulls":14},{"$f":"SUM(tblKulukategooria_13[[#This Row],[jaan]:[dets]])","v":0},{"$f":"tblKulukategooria_13[[#This Row],[aasta]]/12","v":0}]
[{"$nulls":14},{"$f":"SUM(tblKulukategooria_13[[#This Row],[jaan]:[dets]])","v":0},{"$f":"tblKulukategooria_13[[#This Row],[aasta]]/12","v":0}]
[null,{"$f":"UPPER(\"Kokku \" & B113)","v":"KOKKU  "},{"$f":"SUM(tblKulukategooria_13[jaan])","v":0},{"$f":"SUM(tblKulukategooria_13[veebr])","v":0},{"$f":"SUM(tblKulukategooria_13[märts])","v":0},{"$f":"SUM(tblKulukategooria_13[apr])","v":0},{"$f":"SUM(tblKulukategooria_13[mai])","v":0},{"$f":"SUM(tblKulukategooria_13[juuni])","v":0},{"$f":"SUM(tblKulukategooria_13[juuli])","v":0},{"$f":"SUM(tblKulukategooria_13[aug])","v":0},{"$f":"SUM(tblKulukategooria_13[sept])","v":0},{"$f":"SUM(tblKulukategooria_13[okt])","v":0},{"$f":"SUM(tblKulukategooria_13[nov])","v":0},{"$f":"SUM(tblKulukategooria_13[dets])","v":0},{"$f":"SUM(tblKulukategooria_13[aasta])","v":0},{"$f":"tblKulukategooria_13[[#Totals],[aasta]]/12","v":0}]
[]
[]
[null," "]
[{"$nulls":14},{"$f":"SUM(tblKulukategooria_14[[#This Row],[jaan]:[dets]])","v":0},{"$f":"tblKulukategooria_14[[#This Row],[aasta]]/12","v":0}]
[{"$nulls":14},{"$f":"SUM(tblKulukategooria_14[[#This Row],[jaan]:[dets]])","v":0},{"$f":"tblKulukategooria_14[[#This Row],[aasta]]/12","v":0}]
[{"$nulls":14},{"$f":"SUM(tblKulukategooria_14[[#This Row],[jaan]:[dets]])","v":0},{"$f":"tblKulukategooria_14[[#This Row],[aasta]]/12","v":0}]
[null,{"$f":"UPPER(\"Kokku\" & B120)","v":"KOKKU "},{"$f":"SUM(tblKulukategooria_14[jaan])","v":0},{"$f":"SUM(tblKulukategooria_14[veebr])","v":0},{"$f":"SUM(tblKulukategooria_14[märts])","v":0},{"$f":"SUM(tblKulukategooria_14[apr])","v":0},{"$f":"SUM(tblKulukategooria_14[mai])","v":0},{"$f":"SUM(tblKulukategooria_14[juuni])","v":0},{"$f":"SUM(tblKulukategooria_14[juuli])","v":0},{"$f":"SUM(tblKulukategooria_14[aug])","v":0},{"$f":"SUM(tblKulukategooria_14[sept])","v":0},{"$f":"SUM(tblKulukategooria_14[okt])","v":0},{"$f":"SUM(tblKulukategooria_14[nov])","v":0},{"$f":"SUM(tblKulukategooria_14[dets])","v":0},{"$f":"SUM(tblKulukategooria_14[aasta])","v":0},{"$f":"tblKulukategooria_14[[#Totals],[aasta]]/12","v":0}]
[]
[]
[null," "]
[{"$nulls":14},{"$f":"SUM(tblKulukategooria_15[[#This Row],[jaan]:[dets]])","v":0},{"$f":"tblKulukategooria_15[[#This Row],[aasta]]/12","v":0}]
[{"$nulls":14},{"$f":"SUM(tblKulukategooria_15[[#This Row],[jaan]:[dets]])","v":0},{"$f":"tblKulukategooria_15[[#This Row],[aasta]]/12","v":0}]
[{"$nulls":14},{"$f":"SUM(tblKulukategooria_15[[#This Row],[jaan]:[dets]])","v":0},{"$f":"tblKulukategooria_15[[#This Row],[aasta]]/12","v":0}]
[null,{"$f":"UPPER(\"Kokku\" & B127)","v":"KOKKU "},{"$f":"SUM(tblKulukategooria_15[jaan])","v":0},{"$f":"SUM(tblKulukategooria_15[veebr])","v":0},{"$f":"SUM(tblKulukategooria_15[märts])","v":0},{"$f":"SUM(tblKulukategooria_15[apr])","v":0},{"$f":"SUM(tblKulukategooria_15[mai])","v":0},{"$f":"SUM(tblKulukategooria_15[juuni])","v":0},{"$f":"SUM(tblKulukategooria_15[juuli])","v":0},{"$f":"SUM(tblKulukategooria_15[aug])","v":0},{"$f":"SUM(tblKulukategooria_15[sept])","v":0},{"$f":"SUM(tblKulukategooria_15[okt])","v":0},{"$f":"SUM(tblKulukategooria_15[nov])","v":0},{"$f":"SUM(tblKulukategooria_15[dets])","v":0},{"$f":"SUM(tblKulukategooria_15[aasta])","v":0},{"$f":"tblKulukategooria_15[[#Totals],[aasta]]/12","v":0}]

{"sheet":"Seadistamine","index":2,"n_rows":59,"n_cols":10,"rows_kept":59}
[null,"PEREKOND JOHNSON 2012"]
[null,"sissetulek",null,"kulud"]
[null,"töötasu ja jootraha",null," "]
[null,"intressitulu",null,"kodu",null,"kodu",null,"igapäevaelu",null,"lapsed"]
[null,"dividendid",null,"igapäevaelu",null,"hüpoteek/rent",null,"toiduained",null,"meditsiinitarbed"]
[null,"saadud kingitused",null,"lapsed",null,"elekter",null,"isiklikud esemed",null,"riided"]
[null,"hüvitised/korvamised",null,"transport",null,"gaas/nafta",null,"riided",null,"õppemaks"]
[null,"hoiuste sissemakse",null,"tervis",null,"vesi/kanalisatsioon/prügi",null,"puhastusteenused",null,"koolilõuna"]
[null,"muu",null,"kindlustus",null,"telefon",null,"õhtustamine/väljas söömine",null,"koolitarbed"]
[{"$nulls":3},"haridus",null,"kaabel/satelliit",null,"keemiline puhastus",null,"lapsehoidmine"]
[{"$nulls":3},"heategevus",null,"internet",null,"juuksur",null,"mänguasjad/mängud"]
[{"$nulls":3},"hoiused",null,"sisustus/masinad",null,"muu",null,"muu"]
[{"$nulls":3},"kohustused",null,"muru/aed"]
[{"$nulls":3},"meelelahutus",null,"kodutarvikud"]
[{"$nulls":3},"lemmikloomad",null,"hooldus"]
[{"$nulls":3},"tellimused",null,"parandamine"]
[{"$nulls":3},"puhkus",null,"muu"]
[{"$nulls":3},"mitmesugust"]
[]
[{"$nulls":5},"transport",null,"tervis",null,"kindlustus"]
[{"$nulls":5},"sõiduki maksed",null,"arst/hambaarst",null,"auto"]
[{"$nulls":5},"kütus",null,"arstimid",null,"tervis"]
[{"$nulls":5},"bussi-/takso-/rongisõit",null,"terviseklubi maksed",null,"kodu/rendi"]
[{"$nulls":5},"parandustööd",null,"hädaolukord",null,"elu"]
[{"$nulls":5},"registreerimine/juhiluba",null,"muu",null,"muu"]
[{"$nulls":5},"muu"]
[]
[]
[{"$nulls":5},"haridus",null,"heategevus",null,"hoiused"]
[{"$nulls":5},"õppemaks",null,"tehtud kingitused",null,"hädaolukorra fond"]
[{"$nulls":5},"raamatud",null,"heategevuslikud annetused",null,"hoiuste sissemakse"]
[{"$nulls":5},"muusikatunnid",null,"annetused kirikule",null,"pension (401k, ira)"]
[{"$nulls":5},"muu",null,"muu",null,"investeeringud"]
[{"$nulls":9},"ülikool"]
[{"$nulls":9},"muu"]
[]
[]
[{"$nulls":5},"kohustused",null,"meelelahutus",null,"lemmikloomad"]
[{"$nulls":5},"õppelaen",null,"videod/dvd-d",null,"toit"]
[{"$nulls":5},"muu laen",null,"muusika",null,"meditsiinitarbed"]
[{"$nulls":5},"krediitkaart #1",null,"mängud",null,"mänguasjad/tarvikud"]
[{"$nulls":5},"krediitkaart #2",null,"rentimine",null,"muu"]
[{"$nulls":5},"krediitkaart #3",null,"kino/teater"]
[{"$nulls":5},"alimendid/lapsetoetus",null,"kontserdid/etendused"]
[{"$nulls":5},"föderaalmaksud",null,"raamatud"]
[{"$nulls":5},"kinnisvaramaks",null,"hobid"]
[{"$nulls":5},"riigi-/kohalikud maksud",null,"filmid/fotod"]
[{"$nulls":5},"majaomaniku maks",null,"sport"]
[{"$nulls":5},"juriidiline tasu",null,"vabaajategevused"]
[{"$nulls":5},"muu",null,"mänguasjad/vidinad"]
[{"$nulls":7},"muu"]
[]
[{"$nulls":5},"tellimused",null,"puhkus",null,"mitmesugust"]
[{"$nulls":5},"ajaleht",null,"reisimine",null,"pangamaksed"]
[{"$nulls":5},"ajakirjad",null,"majutus",null,"post"]
[{"$nulls":5},"kohustused",null,"toit",null,"muu"]
[{"$nulls":5},"klubi liikmemaks",null,"autorent"]
[{"$nulls":5},"muu",null,"meelelahutus"]
[{"$nulls":7},"muu"]

{"sheet":"diagrammiandmed","index":3,"n_rows":40,"n_cols":16,"rows_kept":40,"hidden":true}
[null,"*** See leht peaks olema peidetud ***"]
[]
[]
[null,"Periood",3]
[]
[null,null,"jaan","veebr","märts","apr","mai","juuni","juuli","aug","sept","okt","nov","dets","aasta","Keskm"]
[null,{"$f":"LOWER(Eelarve!B127)","v":" "},{"$f":"SUM(tblKulukategooria_15[jaan])","v":0},{"$f":"SUM(tblKulukategooria_15[veebr])","v":0},{"$f":"SUM(tblKulukategooria_15[märts])","v":0},{"$f":"SUM(tblKulukategooria_15[apr])","v":0},{"$f":"SUM(tblKulukategooria_15[mai])","v":0},{"$f":"SUM(tblKulukategooria_15[juuni])","v":0},{"$f":"SUM(tblKulukategooria_15[juuli])","v":0},{"$f":"SUM(tblKulukategooria_15[aug])","v":0},{"$f":"SUM(tblKulukategooria_15[sept])","v":0},{"$f":"SUM(tblKulukategooria_15[okt])","v":0},{"$f":"SUM(tblKulukategooria_15[nov])","v":0},{"$f":"SUM(tblKulukategooria_15[dets])","v":0},{"$f":"SUM(tblKulukategooria_15[aasta])","v":0},{"$f":"SUM(tblKulukategooria_15[keskm])","v":0}]
[null,{"$f":"LOWER(Eelarve!B120)","v":" "},{"$f":"SUM(tblKulukategooria_14[jaan])","v":0},{"$f":"SUM(tblKulukategooria_14[veebr])","v":0},{"$f":"SUM(tblKulukategooria_14[märts])","v":0},{"$f":"SUM(tblKulukategooria_14[apr])","v":0},{"$f":"SUM(tblKulukategooria_14[mai])","v":0},{"$f":"SUM(tblKulukategooria_14[juuni])","v":0},{"$f":"SUM(tblKulukategooria_14[juuli])","v":0},{"$f":"SUM(tblKulukategooria_14[aug])","v":0},{"$f":"SUM(tblKulukategooria_14[sept])","v":0},{"$f":"SUM(tblKulukategooria_14[okt])","v":0},{"$f":"SUM(tblKulukategooria_14[nov])","v":0},{"$f":"SUM(tblKulukategooria_14[dets])","v":0},{"$f":"SUM(tblKulukategooria_14[aasta])","v":0},{"$f":"SUM(tblKulukategooria_14[keskm])","v":0}]
[null,{"$f":"LOWER(Eelarve!B113)","v":" "},{"$f":"SUM(tblKulukategooria_13[jaan])","v":0},{"$f":"SUM(tblKulukategooria_13[veebr])","v":0},{"$f":"SUM(tblKulukategooria_13[märts])","v":0},{"$f":"SUM(tblKulukategooria_13[apr])","v":0},{"$f":"SUM(tblKulukategooria_13[mai])","v":0},{"$f":"SUM(tblKulukategooria_13[juuni])","v":0},{"$f":"SUM(tblKulukategooria_13[juuli])","v":0},{"$f":"SUM(tblKulukategooria_13[aug])","v":0},{"$f":"SUM(tblKulukategooria_13[sept])","v":0},{"$f":"SUM(tblKulukategooria_13[okt])","v":0},{"$f":"SUM(tblKulukategooria_13[nov])","v":0},{"$f":"SUM(tblKulukategooria_13[dets])","v":0},{"$f":"SUM(tblKulukategooria_13[aasta])","v":0},{"$f":"SUM(tblKulukategooria_13[keskm])","v":0}]
[null,{"$f":"LOWER(Eelarve!B106)","v":" "},{"$f":"SUM(tblKulukategooria_12[jaan])","v":0},{"$f":"SUM(tblKulukategooria_12[veebr])","v":0},{"$f":"SUM(tblKulukategooria_12[märts])","v":0},{"$f":"SUM(tblKulukategooria_12[apr])","v":0},{"$f":"SUM(tblKulukategooria_12[mai])","v":0},{"$f":"SUM(tblKulukategooria_12[juuni])","v":0},{"$f":"SUM(tblKulukategooria_12[juuli])","v":0},{"$f":"SUM(tblKulukategooria_12[aug])","v":0},{"$f":"SUM(tblKulukategooria_12[sept])","v":0},{"$f":"SUM(tblKulukategooria_12[okt])","v":0},{"$f":"SUM(tblKulukategooria_12[nov])","v":0},{"$f":"SUM(tblKulukategooria_12[dets])","v":0},{"$f":"SUM(tblKulukategooria_12[aasta])","v":0},{"$f":"SUM(tblKulukategooria_12[keskm])","v":0}]
[null,{"$f":"LOWER(Eelarve!B99)","v":" "},{"$f":"SUM(tblKulukategooria_11[jaan])","v":0},{"$f":"SUM(tblKulukategooria_11[veebr])","v":0},{"$f":"SUM(tblKulukategooria_11[märts])","v":0},{"$f":"SUM(tblKulukategooria_11[apr])","v":0},{"$f":"SUM(tblKulukategooria_11[mai])","v":0},{"$f":"SUM(tblKulukategooria_11[juuni])","v":0},{"$f":"SUM(tblKulukategooria_11[juuli])","v":0},{"$f":"SUM(tblKulukategooria_11[aug])","v":0},{"$f":"SUM(tblKulukategooria_11[sept])","v":0},{"$f":"SUM(tblKulukategooria_11[okt])","v":0},{"$f":"SUM(tblKulukategooria_11[nov])","v":0},{"$f":"SUM(tblKulukategooria_11[dets])","v":0},{"$f":"SUM(tblKulukategooria_11[aasta])","v":0},{"$f":"SUM(tblKulukategooria_11[keskm])","v":0}]
[null,{"$f":"LOWER(Eelarve!B92)","v":"kohustused"},{"$f":"SUM(tblKulukategooria_10[jaan])","v":650},{"$f":"SUM(tblKulukategooria_10[veebr])","v":200},{"$f":"SUM(tblKulukategooria_10[märts])","v":200},{"$f":"SUM(tblKulukategooria_10[apr])","v":650},{"$f":"SUM(tblKulukategooria_10[mai])","v":200},{"$f":"SUM(tblKulukategooria_10[juuni])","v":200},{"$f":"SUM(tblKulukategooria_10[juuli])","v":650},{"$f":"SUM(tblKulukategooria_10[aug])","v":200},{"$f":"SUM(tblKulukategooria_10[sept])","v":200},{"$f":"SUM(tblKulukategooria_10[okt])","v":650},{"$f":"SUM(tblKulukategooria_10[nov])","v":200},{"$f":"SUM(tblKulukategooria_10[dets])","v":200},{"$f":"SUM(tblKulukategooria_10[aasta])","v":{"v":4200,"d":"4,200"}},{"$f":"SUM(tblKulukategooria_10[keskm])","v":350}]
[null,{"$f":"LOWER(Eelarve!B85)","v":"hoiused"},{"$f":"SUM(tblKulukategooria_09[jaan])","v":800},{"$f":"SUM(tblKulukategooria_09[veebr])","v":800},{"$f":"SUM(tblKulukategooria_09[märts])","v":800},{"$f":"SUM(tblKulukategooria_09[apr])","v":800},{"$f":"SUM(tblKulukategooria_09[mai])","v":800},{"$f":"SUM(tblKulukategooria_09[juuni])","v":500},{"$f":"SUM(tblKulukategooria_09[juuli])","v":500},{"$f":"SUM(tblKulukategooria_09[aug])","v":500},{"$f":"SUM(tblKulukategooria_09[sept])","v":800},{"$f":"SUM(tblKulukategooria_09[okt])","v":800},{"$f":"SUM(tblKulukategooria_09[nov])","v":800},{"$f":"SUM(tblKulukategooria_09[dets])","v":800},{"$f":"SUM(tblKulukategooria_09[aasta])","v":{"v":8700,"d":"8,700"}},{"$f":"SUM(tblKulukategooria_09[keskm])","v":725}]
[null,{"$f":"LOWER(Eelarve!B78)","v":"heategevus"},{"$f":"SUM(tblKulukategooria_08[jaan])","v":0},{"$f":"SUM(tblKulukategooria_08[veebr])","v":100},{"$f":"SUM(tblKulukategooria_08[märts])","v":100},{"$f":"SUM(tblKulukategooria_08[apr])","v":100},{"$f":"SUM(tblKulukategooria_08[mai])","v":100},{"$f":"SUM(tblKulukategooria_08[juuni])","v":100},{"$f":"SUM(tblKulukategooria_08[juuli])","v":100},{"$f":"SUM(tblKulukategooria_08[aug])","v":100},{"$f":"SUM(tblKulukategooria_08[sept])","v":100},{"$f":"SUM(tblKulukategooria_08[okt])","v":100},{"$f":"SUM(tblKulukategooria_08[nov])","v":100},{"$f":"SUM(tblKulukategooria_08[dets])","v":100},{"$f":"SUM(tblKulukategooria_08[aasta])","v":{"v":1100,"d":"1,100"}},{"$f":"SUM(tblKulukategooria_08[keskm])","v":{"v":91.66666666666666,"d":"92"}}]
[null,{"$f":"LOWER(Eelarve!B71)","v":"haridus"},{"$f":"SUM(tblKulukategooria_07[jaan])","v":0},{"$f":"SUM(tblKulukategooria_07[veebr])","v":0},{"$f":"SUM(tblKulukategooria_07[märts])","v":625},{"$f":"SUM(tblKulukategooria_07[apr])","v":0},{"$f":"SUM(tblKulukategooria_07[mai])","v":0},{"$f":"SUM(tblKulukategooria_07[juuni])","v":0},{"$f":"SUM(tblKulukategooria_07[juuli])","v":0},{"$f":"SUM(tblKulukategooria_07[aug])","v":0},{"$f":"SUM(tblKulukategooria_07[sept])","v":625},{"$f":"SUM(tblKulukategooria_07[okt])","v":0},{"$f":"SUM(tblKulukategooria_07[nov])","v":0},{"$f":"SUM(tblKulukategooria_07[dets])","v":0},{"$f":"SUM(tblKulukategooria_07[aasta])","v":{"v":1250,"d":"1,250"}},{"$f":"SUM(tblKulukategooria_07[keskm])","v":{"v":104.16666666666667,"d":"104"}}]
[null,{"$f":"LOWER(Eelarve!B64)","v":"kindlustus"},{"$f":"SUM(tblKulukategooria_06[jaan])","v":975},{"$f":"SUM(tblKulukategooria_06[veebr])","v":975},{"$f":"SUM(tblKulukategooria_06[märts])","v":975},{"$f":"SUM(tblKulukategooria_06[apr])","v":975},{"$f":"SUM(tblKulukategooria_06[mai])","v":975},{"$f":"SUM(tblKulukategooria_06[juuni])","v":975},{"$f":"SUM(tblKulukategooria_06[juuli])","v":975},{"$f":"SUM(tblKulukategooria_06[aug])","v":975},{"$f":"SUM(tblKulukategooria_06[sept])","v":975},{"$f":"SUM(tblKulukategooria_06[okt])","v":975},{"$f":"SUM(tblKulukategooria_06[nov])","v":975},{"$f":"SUM(tblKulukategooria_06[dets])","v":975},{"$f":"SUM(tblKulukategooria_06[aasta])","v":{"v":11700,"d":"11,700"}},{"$f":"SUM(tblKulukategooria_06[keskm])","v":975}]
[null,{"$f":"LOWER(Eelarve!B57)","v":"tervis"},{"$f":"SUM(tblKulukategooria_05[jaan])","v":25},{"$f":"SUM(tblKulukategooria_05[veebr])","v":60},{"$f":"SUM(tblKulukategooria_05[märts])","v":175},{"$f":"SUM(tblKulukategooria_05[apr])","v":25},{"$f":"SUM(tblKulukategooria_05[mai])","v":60},{"$f":"SUM(tblKulukategooria_05[juuni])","v":60},{"$f":"SUM(tblKulukategooria_05[juuli])","v":60},{"$f":"SUM(tblKulukategooria_05[aug])","v":25},{"$f":"SUM(tblKulukategooria_05[sept])","v":175},{"$f":"SUM(tblKulukategooria_05[okt])","v":60},{"$f":"SUM(tblKulukategooria_05[nov])","v":25},{"$f":"SUM(tblKulukategooria_05[dets])","v":25},{"$f":"SUM(tblKulukategooria_05[aasta])","v":775},{"$f":"SUM(tblKulukategooria_05[keskm])","v":{"v":64.58333333333334,"d":"65"}}]
[null,{"$f":"LOWER(Eelarve!B48)","v":"transport"},{"$f":"SUM(tblKulukategooria_04[jaan])","v":{"v":1110,"d":"1,110"}},{"$f":"SUM(tblKulukategooria_04[veebr])","v":{"v":1025,"d":"1,025"}},{"$f":"SUM(tblKulukategooria_04[märts])","v":925},{"$f":"SUM(tblKulukategooria_04[apr])","v":{"v":1025,"d":"1,025"}},{"$f":"SUM(tblKulukategooria_04[mai])","v":{"v":1325,"d":"1,325"}},{"$f":"SUM(tblKulukategooria_04[juuni])","v":{"v":1200,"d":"1,200"}},{"$f":"SUM(tblKulukategooria_04[juuli])","v":{"v":1100,"d":"1,100"}},{"$f":"SUM(tblKulukategooria_04[aug])","v":{"v":1200,"d":"1,200"}},{"$f":"SUM(tblKulukategooria_04[sept])","v":{"v":1150,"d":"1,150"}},{"$f":"SUM(tblKulukategooria_04[okt])","v":{"v":1025,"d":"1,025"}},{"$f":"SUM(tblKulukategooria_04[nov])","v":925},{"$f":"SUM(tblKulukategooria_04[dets])","v":925},{"$f":"SUM(tblKulukategooria_04[aasta])","v":{"v":12935,"d":"12,935"}},{"$f":"SUM(tblKulukategooria_04[keskm])","v":{"v":1077.9166666666665,"d":"1,078"}}]
[null,{"$f":"LOWER(Eelarve!B39)","v":"lapsed"},{"$f":"SUM(tblKulukategooria_03[jaan])","v":{"v":2373,"d":"2,373"}},{"$f":"SUM(tblKulukategooria_03[veebr])","v":500},{"$f":"SUM(tblKulukategooria_03[märts])","v":350},{"$f":"SUM(tblKulukategooria_03[apr])","v":250},{"$f":"SUM(tblKulukategooria_03[mai])","v":350},{"$f":"SUM(tblKulukategooria_03[juuni])","v":450},{"$f":"SUM(tblKulukategooria_03[juuli])","v":200},{"$f":"SUM(tblKulukategooria_03[aug])","v":545},{"$f":"SUM(tblKulukategooria_03[sept])","v":350},{"$f":"SUM(tblKulukategooria_03[okt])","v":350},{"$f":"SUM(tblKulukategooria_03[nov])","v":250},{"$f":"SUM(tblKulukategooria_03[dets])","v":350},{"$f":"SUM(tblKulukategooria_03[aasta])","v":{"v":6318,"d":"6,318"}},{"$f":"SUM(tblKulukategooria_03[keskm])","v":{"v":526.5,"d":"527"}}]
[null,{"$f":"LOWER(Eelarve!B30)","v":"igapäevaelu"},{"$f":"SUM(tblKulukategooria_02[jaan])","v":795},{"$f":"SUM(tblKulukategooria_02[veebr])","v":375},{"$f":"SUM(tblKulukategooria_02[märts])","v":550},{"$f":"SUM(tblKulukategooria_02[apr])","v":825},{"$f":"SUM(tblKulukategooria_02[mai])","v":500},{"$f":"SUM(tblKulukategooria_02[juuni])","v":450},{"$f":"SUM(tblKulukategooria_02[juuli])","v":875},{"$f":"SUM(tblKulukategooria_02[aug])","v":475},{"$f":"SUM(tblKulukategooria_02[sept])","v":400},{"$f":"SUM(tblKulukategooria_02[okt])","v":825},{"$f":"SUM(tblKulukategooria_02[nov])","v":575},{"$f":"SUM(tblKulukategooria_02[dets])","v":375},{"$f":"SUM(tblKulukategooria_02[aasta])","v":{"v":7020,"d":"7,020"}},{"$f":"SUM(tblKulukategooria_02[keskm])","v":585}]
[null,{"$f":"LOWER(Eelarve!B21)","v":"kodu"},{"$f":"SUM(tblKulukategooria_01[jaan])","v":{"v":1208,"d":"1,208"}},{"$f":"SUM(tblKulukategooria_01[veebr])","v":{"v":1208,"d":"1,208"}},{"$f":"SUM(tblKulukategooria_01[märts])","v":{"v":1233,"d":"1,233"}},{"$f":"SUM(tblKulukategooria_01[apr])","v":{"v":1208,"d":"1,208"}},{"$f":"SUM(tblKulukategooria_01[mai])","v":{"v":1158,"d":"1,158"}},{"$f":"SUM(tblKulukategooria_01[juuni])","v":{"v":1183,"d":"1,183"}},{"$f":"SUM(tblKulukategooria_01[juuli])","v":{"v":1283,"d":"1,283"}},{"$f":"SUM(tblKulukategooria_01[aug])","v":{"v":1333,"d":"1,333"}},{"$f":"SUM(tblKulukategooria_01[sept])","v":{"v":1208,"d":"1,208"}},{"$f":"SUM(tblKulukategooria_01[okt])","v":{"v":1158,"d":"1,158"}},{"$f":"SUM(tblKulukategooria_01[nov])","v":{"v":1208,"d":"1,208"}},{"$f":"SUM(tblKulukategooria_01[dets])","v":{"v":1208,"d":"1,208"}},{"$f":"SUM(tblKulukategooria_01[aasta])","v":{"v":14596,"d":"14,596"}},{"$f":"SUM(tblKulukategooria_01[keskm])","v":{"v":1216.3333333333335,"d":"1,216"}}]
[]
[]
[]
[]
[null,"Summaarne rahavoog",{"$f":"SUM(Eelarve!$C$8:C$8)","v":{"v":-3714,"d":"-3,714"}},{"$f":"SUM(Eelarve!$C$8:D$8)","v":76},{"$f":"SUM(Eelarve!$C$8:E$8)","v":{"v":-1857,"d":"-1,857"}},{"$f":"SUM(Eelarve!$C$8:F$8)","v":{"v":-3670,"d":"-3,670"}},{"$f":"SUM(Eelarve!$C$8:G$8)","v":-138},{"$f":"SUM(Eelarve!$C$8:H$8)","v":{"v":-3731,"d":"-3,731"}},{"$f":"SUM(Eelarve!$C$8:I$8)","v":{"v":-7974,"d":"-7,974"}},{"$f":"SUM(Eelarve!$C$8:J$8)","v":{"v":-6827,"d":"-6,827"}},{"$f":"SUM(Eelarve!$C$8:K$8)","v":{"v":-8810,"d":"-8,810"}},{"$f":"SUM(Eelarve!$C$8:L$8)","v":{"v":-10753,"d":"-10,753"}},{"$f":"SUM(Eelarve!$C$8:M$8)","v":{"v":-6811,"d":"-6,811"}},{"$f":"SUM(Eelarve!$C$8:N$8)","v":{"v":-7769,"d":"-7,769"}},{"$f":"SUM(Eelarve!$C$8:O$8)","v":{"v":-15538,"d":"-15,538"}}]
[]
[null,"Positiivne aastane rahavoog",{"$f":"IF(Eelarve!C$8<0,NA(),IF(Periood1+2<>COLUMN(Eelarve!C$8),NA(),Eelarve!C$8))","v":{"$error":"#N/A"}},{"$f":"IF(Eelarve!D$8<0,NA(),IF(Periood1+2<>COLUMN(Eelarve!D$8),NA(),Eelarve!D$8))","v":{"$error":"#N/A"}},{"$f":"IF(Eelarve!E$8<0,NA(),IF(Periood1+2<>COLUMN(Eelarve!E$8),NA(),Eelarve!E$8))","v":{"$error":"#N/A"}},{"$f":"IF(Eelarve!F$8<0,NA(),IF(Periood1+2<>COLUMN(Eelarve!F$8),NA(),Eelarve!F$8))","v":{"$error":"#N/A"}},{"$f":"IF(Eelarve!G$8<0,NA(),IF(Periood1+2<>COLUMN(Eelarve!G$8),NA(),Eelarve!G$8))","v":{"$error":"#N/A"}},{"$f":"IF(Eelarve!H$8<0,NA(),IF(Periood1+2<>COLUMN(Eelarve!H$8),NA(),Eelarve!H$8))","v":{"$error":"#N/A"}},{"$f":"IF(Eelarve!I$8<0,NA(),IF(Periood1+2<>COLUMN(Eelarve!I$8),NA(),Eelarve!I$8))","v":{"$error":"#N/A"}},{"$f":"IF(Eelarve!J$8<0,NA(),IF(Periood1+2<>COLUMN(Eelarve!J$8),NA(),Eelarve!J$8))","v":{"$error":"#N/A"}},{"$f":"IF(Eelarve!K$8<0,NA(),IF(Periood1+2<>COLUMN(Eelarve!K$8),NA(),Eelarve!K$8))","v":{"$error":"#N/A"}},{"$f":"IF(Eelarve!L$8<0,NA(),IF(Periood1+2<>COLUMN(Eelarve!L$8),NA(),Eelarve!L$8))","v":{"$error":"#N/A"}},{"$f":"IF(Eelarve!M$8<0,NA(),IF(Periood1+2<>COLUMN(Eelarve!M$8),NA(),Eelarve!M$8))","v":{"$error":"#N/A"}},{"$f":"IF(Eelarve!N$8<0,NA(),IF(Periood1+2<>COLUMN(Eelarve!N$8),NA(),Eelarve!N$8))","v":{"$error":"#N/A"}},{"$f":"IF(Eelarve!O$8<0,NA(),IF(Periood1+2<>COLUMN(Eelarve!O$8),NA(),Eelarve!O$8))","v":{"$error":"#N/A"}}]
[null,"Negatiivne aastane rahavoog",{"$f":"IF(Eelarve!C$8>=0,NA(),IF(Periood1+2<>COLUMN(Eelarve!C$8),NA(),Eelarve!C$8))","v":{"$error":"#N/A"}},{"$f":"IF(Eelarve!D$8>=0,NA(),IF(Periood1+2<>COLUMN(Eelarve!D$8),NA(),Eelarve!D$8))","v":{"$error":"#N/A"}},{"$f":"IF(Eelarve!E$8>=0,NA(),IF(Periood1+2<>COLUMN(Eelarve!E$8),NA(),Eelarve!E$8))","v":{"v":-1933,"d":"-1,933"}},{"$f":"IF(Eelarve!F$8>=0,NA(),IF(Periood1+2<>COLUMN(Eelarve!F$8),NA(),Eelarve!F$8))","v":{"$error":"#N/A"}},{"$f":"IF(Eelarve!G$8>=0,NA(),IF(Periood1+2<>COLUMN(Eelarve!G$8),NA(),Eelarve!G$8))","v":{"$error":"#N/A"}},{"$f":"IF(Eelarve!H$8>=0,NA(),IF(Periood1+2<>COLUMN(Eelarve!H$8),NA(),Eelarve!H$8))","v":{"$error":"#N/A"}},{"$f":"IF(Eelarve!I$8>=0,NA(),IF(Periood1+2<>COLUMN(Eelarve!I$8),NA(),Eelarve!I$8))","v":{"$error":"#N/A"}},{"$f":"IF(Eelarve!J$8>=0,NA(),IF(Periood1+2<>COLUMN(Eelarve!J$8),NA(),Eelarve!J$8))","v":{"$error":"#N/A"}},{"$f":"IF(Eelarve!K$8>=0,NA(),IF(Periood1+2<>COLUMN(Eelarve!K$8),NA(),Eelarve!K$8))","v":{"$error":"#N/A"}},{"$f":"IF(Eelarve!L$8>=0,NA(),IF(Periood1+2<>COLUMN(Eelarve!L$8),NA(),Eelarve!L$8))","v":{"$error":"#N/A"}},{"$f":"IF(Eelarve!M$8>=0,NA(),IF(Periood1+2<>COLUMN(Eelarve!M$8),NA(),Eelarve!M$8))","v":{"$error":"#N/A"}},{"$f":"IF(Eelarve!N$8>=0,NA(),IF(Periood1+2<>COLUMN(Eelarve!N$8),NA(),Eelarve!N$8))","v":{"$error":"#N/A"}},{"$f":"IF(Eelarve!O$8>=0,NA(),IF(Periood1+2<>COLUMN(Eelarve!O$8),NA(),Eelarve!O$8))","v":{"$error":"#N/A"}}]
{"$rows_empty":7}
[null,{"$f":"LOWER(kuva_pikk_periood)","v":"märts"}]
[null,{"$f":"kuva_pikk_periood & \" tulud\"","v":"märts tulud"},{"$f":"INDEX(Eelarve!$C$6:$P$6,,Periood1)","v":{"v":4000,"d":"4,000 kr"}}]
[null,{"$f":"kuva_pikk_periood & \" kulud: \" & TEXT(INDEX(Eelarve!$C$7:$P$7,,Periood1),\"# ##0 kr\")","v":"märts kulud: 5 933 kr"},{"$f":"INDEX(Eelarve!$C$7:$P$7,,Periood1)","v":{"v":5933,"d":"5,933 kr"}}]
[null,{"$f":"kuva_pikk_periood & \" rahavoog\"","v":"märts rahavoog"},{"$f":"ABS(INDEX(Eelarve!$C$8:$P$8,,Periood1))","v":{"v":1933,"d":"1,933 kr"}},{"$f":"REPT(\"-\",INDEX(Eelarve!$C$8:$P$8,,Periood1)<0)","v":"-"}]